fUST/lending_fUST_20250202
["ID","MTS","AMOUNT","RATE_DAILY","PERIOD"]
[351214001,1738435645482,-500.0,0.00016438,2]
[351214002,1738435645506,-506.92400394,0.00016438,2]
[351214003,1738435645529,-500.0,0.00016438,2]
[351214004,1738435645552,-500.0,0.00016438,2]
[351214005,1738435645574,-500.0,0.00016438,2]
[351214006,1738435645600,-500.0,0.00016438,2]
[351214007,1738435645627,-500.0,0.00016438,2]
[351214008,1738435645650,-500.0,0.00016438,2]
[351214009,1738435645673,-500.0,0.00016438,2]
[351214010,1738435645695,-500.0,0.00016438,2]
[351214011,1738435645718,-500.0,0.00016438,2]
[351214012,1738435645740,-500.0,0.00016438,2]
[351214013,1738435645762,-500.0,0.00016438,2]
[351214014,1738435645784,-500.0,0.00016438,2]
[351214015,1738435645807,-500.0,0.00016438,2]
[351214016,1738435645830,-500.0,0.00016438,2]
[351214017,1738435645854,-543.99,0.00016438,2]
[351214018,1738435645878,-500.0,0.00016438,2]
[351214019,1738435645900,-500.80017489,0.00016438,2]
[351214020,1738435645923,-506.21712907,0.00016438,2]
[351214021,1738435645945,-500.0,0.00016438,2]
[351214022,1738435645969,-388.81601239,0.00016438,2]
[351214038,1738435832212,-207.80326486,0.00016338,2]
[351214039,1738435832222,-300.0,0.00016437,2]
[351214040,1738435832232,-251.55982899,0.00016437,2]
[351214041,1738435832242,-500.0,0.00016438,2]
[351214042,1738435832251,-500.0,0.00016438,2]
[351214043,1738435832261,-500.0,0.00016438,2]
[351214044,1738435832271,-500.0,0.00016438,2]
[351214045,1738435832284,-500.0,0.00016438,2]
[351214048,1738435832294,-500.0,0.00016438,2]
[351214050,1738435832304,-500.0,0.00016438,2]
[351214052,1738435832314,-500.0,0.00016438,2]
[351214053,1738435832323,-500.0,0.00016438,2]
[351214055,1738435832333,-500.0,0.00016438,2]
[351214057,1738435832343,-500.0,0.00016438,2]
[351214059,1738435832352,-502.84261046,0.00016438,2]
[351214060,1738435832361,-500.0,0.00016438,2]
[351214061,1738435832371,-500.0,0.00016438,2]
[351214062,1738435832381,-500.0,0.00016438,2]
[351214063,1738435832390,-500.0,0.00016438,2]
[351214064,1738435832400,-500.0,0.00016438,2]
[351214065,1738435832409,-500.0,0.00016438,2]
[351214066,1738435832419,-522.65,0.00016438,2]
[351214067,1738435832429,-500.0,0.00016438,2]
[351214068,1738435832438,-500.0,0.00016438,2]
[351214069,1738435832448,-500.0,0.00016438,2]
[351214070,1738435832457,-500.0,0.00016438,2]
[351214071,1738435832467,-500.0,0.00016438,2]
[351214072,1738435832476,-500.0,0.00016438,2]
[351214073,1738435832486,-501.03498578,0.00016438,2]
[351214074,1738435832496,-500.0,0.00016438,2]
[351214075,1738435832505,-500.0,0.00016438,2]
[351214076,1738435832516,-500.0,0.00016438,2]
[351214077,1738435832528,-500.0,0.00016438,2]
[351214078,1738435832539,-500.0,0.00016438,2]
[351214079,1738435832549,-500.0,0.00016438,2]
[351214080,1738435832559,-500.0,0.00016438,2]
[351214081,1738435832568,-500.0,0.00016438,2]
[351214082,1738435832578,-500.0,0.00016438,2]
[351214083,1738435832587,-500.0,0.00016438,2]
[351214084,1738435832597,-500.0,0.00016438,2]
[351214085,1738435832607,-500.0,0.00016438,2]
[351214086,1738435832616,-435.56365965,0.00016438,2]
[351214087,1738435832627,-500.0,0.00016438,2]
[351214088,1738435832636,-581.86330187,0.00016438,2]
[351214089,1738435832646,-500.0,0.00016438,2]
[351214090,1738435832656,-500.0,0.00016438,2]
[351214091,1738435832667,-500.0,0.00016438,2]
[351214092,1738435832835,-500.0,0.00016438,2]
[351214093,1738435832846,-500.0,0.00016438,2]
[351214094,1738435832856,-506.84226342,0.00016438,2]
[351214095,1738435832865,-500.0,0.00016438,2]
[351214096,1738435832874,-500.0,0.00016438,2]
[351214097,1738435832884,-500.0,0.00016438,2]
[351214098,1738435832893,-500.0,0.00016438,2]
[351214099,1738435832902,-501.88048809,0.00016438,2]
[351214100,1738435832912,-500.0,0.00016438,2]
[351214101,1738435832922,-500.0,0.00016438,2]
[351214102,1738435832932,-500.0,0.00016438,2]
[351214103,1738435832942,-500.0,0.00016438,2]
[351214104,1738435832952,-500.0,0.00016438,2]
[351214105,1738435832962,-500.0,0.00016438,2]
[351214106,1738435832972,-500.0,0.00016438,2]
[351214107,1738435832982,-500.0,0.00016438,2]
[351214108,1738435832992,-500.0,0.00016438,2]
[351214109,1738435833002,-580.07,0.00016438,2]
[351214110,1738435833011,-500.0,0.00016438,2]
[351214111,1738435833023,-500.0,0.00016438,2]
[351214112,1738435833035,-500.0,0.00016438,2]
[351214113,1738435833045,-500.0,0.00016438,2]
[351214114,1738435833055,-500.0,0.00016438,2]
[351214115,1738435833064,-500.0,0.00016438,2]
[351214116,1738435833074,-504.94870733,0.00016438,2]
[351214117,1738435833084,-898.35,0.00016438,2]
[351214118,1738435833093,-500.0,0.00016438,2]
[351214119,1738435833103,-500.0,0.00016438,2]
[351214120,1738435833113,-500.0,0.00016438,2]
[351214121,1738435833123,-500.0,0.00016438,2]
[351214122,1738435833133,-500.0,0.00016438,2]
[351214123,1738435833142,-500.0,0.00016438,2]
[351214124,1738435833151,-500.0,0.00016438,2]
[351214125,1738435833161,-500.0,0.00016438,2]
[351214126,1738435833171,-500.0,0.00016438,2]
[351214127,1738435833181,-500.0,0.00016438,2]
[351214128,1738435833191,-500.0,0.00016438,2]
[351214129,1738435833200,-500.0,0.00016438,2]
[351214130,1738435833210,-500.0,0.00016438,2]
[351214131,1738435833220,-500.0,0.00016438,2]
[351214132,1738435833230,-500.0,0.00016438,2]
[351214133,1738435833241,-500.0,0.00016438,2]
[351214134,1738435833251,-500.0,0.00016438,2]
[351214135,1738435833261,-500.0,0.00016438,2]
[351214136,1738435833271,-500.0,0.00016438,2]
[351214137,1738435833283,-500.0,0.00016438,2]
[351214138,1738435833293,-500.0,0.00016438,2]
[351214139,1738435833303,-500.0,0.00016438,2]
[351214140,1738435833313,-535.64513027,0.00016438,2]
[351214141,1738435833323,-500.0,0.00016438,2]
[351214142,1738435833333,-500.0,0.00016438,2]
[351214143,1738435833343,-500.0,0.00016438,2]
[351214144,1738435833354,-500.0,0.00016438,2]
[351214145,1738435833364,-501.89743136,0.00016438,2]
[351214146,1738435833374,-1170.66,0.00016438,2]
[351214147,1738435833383,-500.0,0.00016438,2]
[351214148,1738435833394,-500.0,0.00016438,2]
[351214149,1738435833404,-500.0,0.00016438,2]
[351214150,1738435833414,-500.0,0.00016438,2]
[351214151,1738435833425,-500.0,0.00016438,2]
[351214152,1738435833435,-500.0,0.00016438,2]
[351214153,1738435833445,-500.0,0.00016438,2]
[351214154,1738435833455,-500.0,0.00016438,2]
[351214155,1738435833465,-500.0,0.00016438,2]
[351214156,1738435833475,-705.11,0.00016438,2]
[351214157,1738435833485,-500.0,0.00016438,2]
[351214158,1738435833495,-500.0,0.00016438,2]
[351214159,1738435833505,-501.78743427,0.00016438,2]
[351214160,1738435833515,-500.0,0.00016438,2]
[351214161,1738435833527,-500.73041533,0.00016438,2]
[351214162,1738435833537,-2258.15,0.00016438,2]
[351214163,1738435833547,-552.65521867,0.00016438,2]
[351214164,1738435833557,-500.0,0.00016438,2]
[351214165,1738435833567,-337.31,0.00016438,2]
[351214166,1738435833577,-500.0,0.00016438,2]
[351214167,1738435833587,-492.90446542,0.00016438,2]
[351214168,1738435833597,-500.0,0.00016438,2]
[351214169,1738435833606,-500.0,0.00016438,2]
[351214170,1738435833616,-4391.38,0.00016438,2]
[351214171,1738435833625,-500.0,0.00016438,2]
[351214172,1738435833635,-840.83,0.00016438,2]
[351214173,1738435833644,-1131.92,0.00016438,2]
[351214174,1738435833654,-691.22,0.00016438,2]
[351214175,1738435833663,-500.0,0.00016438,2]
[351214176,1738435833677,-500.0,0.00016438,2]
[351214177,1738435833687,-506.01513147,0.00016438,2]
[351214178,1738435833696,-500.0,0.00016438,2]
[351214179,1738435833706,-586.83,0.00016438,2]
[351214180,1738435833716,-500.0,0.00016438,2]
[351214181,1738435833726,-500.0,0.00016438,2]
[351214182,1738435833735,-808.89,0.00016438,2]
[351214183,1738435833745,-500.0,0.00016438,2]
[351214184,1738435833757,-604.21066008,0.00016438,2]
[351214185,1738435833768,-524.14,0.00016438,2]
[351214186,1738435833777,-500.0,0.00016438,2]
[351214187,1738435833787,-500.0,0.00016438,2]
[351214188,1738435833797,-627.48,0.00016438,2]
[351214189,1738435833807,-607.11,0.00016438,2]
[351214190,1738435833818,-500.0,0.00016438,2]
[351214191,1738435833827,-606.15,0.00016438,2]
[351214192,1738435833837,-500.0,0.00016438,2]
[351214193,1738435833846,-598.3,0.00016438,2]
[351214194,1738435833855,-468.57933467,0.00016438,2]
[351214195,1738435833865,-582.23,0.00016438,2]
[351214196,1738435833874,-13341.64,0.00016438,2]
[351214197,1738435833883,-578.29,0.00016438,2]
[351214198,1738435833893,-500.0,0.00016438,2]
[351214199,1738435833902,-500.0,0.00016438,2]
[351214200,1738435833915,-961.27,0.00016438,2]
[351214201,1738435833937,-500.0,0.00016438,2]
[351214202,1738435833960,-500.0,0.00016438,2]
[351214203,1738435833980,-203.86057762,0.00016438,2]
[351214204,1738435834003,-3791.43,0.00016438,2]
[351214205,1738435834029,-565.92,0.00016438,2]
[351214206,1738435834064,-3923.58,0.00016438,2]
[351214207,1738435834099,-500.0,0.00016438,2]
[351214208,1738435834137,-500.0,0.00016438,2]
[351214209,1738435834173,-500.0,0.00016438,2]
[351214210,1738435834186,-500.0,0.00016438,2]
[351214211,1738435834195,-500.0,0.00016438,2]
[351214212,1738435834205,-500.0,0.00016574,2]
[351214213,1738435834214,-500.0,0.00016574,2]
[351214214,1738435834224,-500.0,0.00016574,2]
[351214215,1738435834234,-500.0,0.00016575,2]
[351214216,1738435834244,-500.0,0.00016575,2]
[351214217,1738435834254,-500.0,0.00016575,2]
[351214218,1738435834264,-500.0,0.00016575,2]
[351214219,1738435834273,-500.0,0.00016575,2]
[351214220,1738435834284,-500.0,0.00016575,2]
[351214221,1738435834294,-500.0,0.00016575,2]
[351214222,1738435834303,-500.0,0.00016575,2]
[351214223,1738435834312,-500.0,0.00016575,2]
[351214224,1738435834322,-500.0,0.00016575,2]
[351214225,1738435834332,-500.0,0.00016575,2]
[351214226,1738435834342,-285.61534595,0.00016575,2]
[351214227,1738435834351,-500.0,0.00016575,2]
[351214228,1738435834361,-500.0,0.00016575,2]
[351214229,1738435834371,-500.0,0.00016575,2]
[351214230,1738435834380,-500.0,0.00016575,2]
[351214231,1738435834390,-447.90117785,0.00016575,2]
[351214232,1738435834400,-500.0,0.00016575,2]
[351214233,1738435834410,-500.0,0.00016575,2]
[351214234,1738435834419,-500.0,0.00016575,2]
[351214235,1738435834429,-500.0,0.00016575,2]
[351214236,1738435834438,-500.0,0.00016575,2]
[351214237,1738435834448,-500.0,0.00016575,2]
[351214238,1738435834458,-500.0,0.00016575,2]
[351214239,1738435834467,-500.0,0.00016575,2]
[351214240,1738435834477,-523.34710049,0.00016575,2]
[351214241,1738435834487,-500.0,0.00016575,2]
[351214242,1738435834497,-522.65,0.00016575,2]
[351214243,1738435834506,-500.0,0.00016575,2]
[351214244,1738435834516,-500.0,0.00016575,2]
[351214245,1738435834527,-509.16817881,0.00016575,2]
[351214246,1738435834536,-500.0,0.00016575,2]
[351214247,1738435834546,-500.0,0.00016575,2]
[351214248,1738435834556,-500.0,0.00016575,2]
[351214249,1738435834565,-341.89204792,0.00016575,2]
[351214250,1738435834574,-500.0,0.00016575,2]
[351214251,1738435834583,-503.56137101,0.00016575,2]
[351214252,1738435834593,-500.0,0.00016575,2]
[351214253,1738435834602,-500.0,0.00016575,2]
[351214254,1738435834612,-500.0,0.00016575,2]
[351214255,1738435834621,-500.0,0.00016575,2]
[351214256,1738435834630,-500.0,0.00016575,2]
[351214257,1738435834640,-500.0,0.00016575,2]
[351214258,1738435834649,-500.0,0.00016575,2]
[351214259,1738435834659,-500.0,0.00016575,2]
[351214260,1738435834668,-501.64424515,0.00016575,2]
[351214261,1738435834680,-580.07,0.00016575,2]
[351214262,1738435834690,-500.0,0.00016575,2]
[351214263,1738435834699,-500.0,0.00016575,2]
[351214264,1738435834710,-500.0,0.00016575,2]
[351214265,1738435834720,-500.0,0.00016575,2]
[351214266,1738435834730,-898.35,0.00016575,2]
[351214267,1738435834739,-507.81873159,0.00016575,2]
[351214268,1738435834748,-500.0,0.00016575,2]
[351214269,1738435834759,-292.88173604,0.00016575,2]
[351214270,1738435834768,-500.0,0.00016575,2]
[351214271,1738435834778,-500.0,0.00016575,2]
[351214272,1738435834787,-500.0,0.00016575,2]
[351214273,1738435834796,-500.0,0.00016575,2]
[351214274,1738435834806,-500.0,0.00016575,2]
[351214275,1738435834815,-500.0,0.00016575,2]
[351214276,1738435834824,-500.0,0.00016575,2]
[351214277,1738435834835,-500.0,0.00016575,2]
[351214278,1738435834844,-500.0,0.00016575,2]
[351214279,1738435834853,-500.0,0.00016575,2]
[351214280,1738435834862,-1170.66,0.00016575,2]
[351214281,1738435834872,-500.0,0.00016575,2]
[351214282,1738435834881,-500.0,0.00016575,2]
[351214283,1738435834891,-500.0,0.00016575,2]
[351214284,1738435834900,-500.0,0.00016575,2]
[351214285,1738435834910,-500.0,0.00016575,2]
[351214286,1738435834919,-500.0,0.00016575,2]
[351214287,1738435834929,-705.11,0.00016575,2]
[351214288,1738435834939,-502.95956321,0.00016575,2]
[351214289,1738435834948,-611.18398761,0.00016575,2]
[351214290,1738435834957,-500.0,0.00016575,2]
[351214291,1738435834968,-2258.15,0.00016575,2]
[351214292,1738435834978,-500.0,0.00016575,2]
[351214293,1738435834987,-507.7260653,0.00016575,2]
[351214294,1738435834997,-500.0,0.00016575,2]
[351214295,1738435835006,-4391.38,0.00016575,2]
[351214296,1738435835015,-502.17441313,0.00016575,2]
[351214297,1738435835025,-840.83,0.00016575,2]
[351214298,1738435835035,-1131.92,0.00016575,2]
[351214299,1738435835044,-691.22,0.00016575,2]
[351214300,1738435835053,-433.84842864,0.00016575,2]
[351214301,1738435835063,-500.0,0.00016575,2]
[351214302,1738435835072,-586.83,0.00016575,2]
[351214303,1738435835082,-500.0,0.00016575,2]
[351214304,1738435835091,-808.89,0.00016575,2]
[351214305,1738435835101,-524.14,0.00016575,2]
[351214306,1738435835110,-487.2,0.00016575,2]
[351214307,1738435835119,-627.48,0.00016575,2]
[351214308,1738435835129,-607.11,0.00016575,2]
[351214309,1738435835139,-500.0,0.00016575,2]
[351214310,1738435835148,-606.15,0.00016575,2]
[351214311,1738435835158,-500.0,0.00016575,2]
[351214312,1738435835168,-598.3,0.00016575,2]
[351214313,1738435835178,-582.23,0.00016575,2]
[351214314,1738435835187,-13341.64,0.00016575,2]
[351214315,1738435835197,-578.29,0.00016575,2]
[351214316,1738435835206,-500.86391518,0.00016575,2]
[351214317,1738435835216,-961.27,0.00016575,2]
[351214318,1738435835225,-500.0,0.00016575,2]
[351214319,1738435835235,-500.0,0.00016575,2]
[351214320,1738435835244,-3791.43,0.00016575,2]
[351214321,1738435835253,-565.92,0.00016575,2]
[351214322,1738435835263,-3923.58,0.00016575,2]
[351214323,1738435835272,-500.0,0.00016575,2]
[351214324,1738435835281,-1283.22,0.000167,2]
[351214325,1738435835290,-151.0,0.000167,2]
[351214326,1738435835300,-500.0,0.0001671,2]
[351214327,1738435835309,-500.0,0.00016711,2]
[351214328,1738435835319,-500.0,0.00016711,2]
[351214329,1738435835328,-500.0,0.00016711,2]
[351214330,1738435835338,-500.0,0.00016711,2]
[351214331,1738435835347,-309.30810197,0.00016711,2]
[351214332,1738435835357,-303.15024308,0.00016712,2]
[351214333,1738435835366,-500.0,0.00016712,2]
[351214334,1738435835376,-500.0,0.00016712,2]
[351214335,1738435835385,-187.36417192,0.00016712,2]
[351214336,1738435835394,-500.0,0.00016712,2]
[351214337,1738435835404,-500.0,0.00016712,2]
[351214338,1738435835413,-500.0,0.00016712,2]
[351214339,1738435835422,-500.0,0.00016712,2]
[351214340,1738435835431,-500.0,0.00016712,2]
[351214341,1738435835442,-500.0,0.00016712,2]
[351214342,1738435835451,-500.0,0.00016712,2]
[351214343,1738435835460,-500.0,0.00016712,2]
[351214344,1738435835469,-205.14338816,0.00016712,2]
[351214345,1738435835478,-500.0,0.00016712,2]
[351214346,1738435835488,-500.0,0.00016712,2]
[351214347,1738435835497,-500.0,0.00016712,2]
[351214348,1738435835507,-522.65,0.00016712,2]
[351214349,1738435835517,-500.0,0.00016712,2]
[351214350,1738435835527,-500.0,0.00016712,2]
[351214351,1738435835535,-500.0,0.00016712,2]
[351214352,1738435835544,-500.0,0.00016712,2]
[351214353,1738435835553,-500.0,0.00016712,2]
[351214354,1738435835564,-580.07,0.00016712,2]
[351214355,1738435835575,-500.0,0.00016712,2]
[351214356,1738435835686,-500.0,0.00016712,2]
[351214357,1738435835697,-151.0,0.00016712,2]
[351214358,1738435835706,-898.35,0.00016712,2]
[351214359,1738435835715,-151.0,0.00016712,2]
[351214360,1738435835726,-500.0,0.00016712,2]
[351214361,1738435835735,-500.0,0.00016712,2]
[351214362,1738435835745,-500.0,0.00016712,2]
[351214363,1738435835756,-500.0,0.00016712,2]
[351214364,1738435835765,-151.0,0.00016712,2]
[351214365,1738435835775,-500.0,0.00016712,2]
[351214366,1738435835785,-500.0,0.00016712,2]
[351214367,1738435835795,-500.0,0.00016712,2]
[351214368,1738435835806,-1170.66,0.00016712,2]
[351214369,1738435835816,-500.0,0.00016712,2]
[351214370,1738435835825,-500.0,0.00016712,2]
[351214371,1738435835834,-500.0,0.00016712,2]
[351214372,1738435835845,-705.11,0.00016712,2]
[351214373,1738435835855,-500.0,0.00016712,2]
[351214374,1738435835864,-2258.15,0.00016712,2]
[351214375,1738435835873,-151.0,0.00016712,2]
[351214376,1738435835882,-151.0,0.00016712,2]
[351214377,1738435835891,-151.0,0.00016712,2]
[351214378,1738435835900,-500.0,0.00016712,2]
[351214379,1738435835908,-4391.38,0.00016712,2]
[351214380,1738435835918,-151.0,0.00016712,2]
[351214381,1738435835927,-840.83,0.00016712,2]
[351214382,1738435835936,-1131.92,0.00016712,2]
[351214383,1738435835945,-691.22,0.00016712,2]
[351214384,1738435835954,-500.0,0.00016712,2]
[351214385,1738435835963,-586.83,0.00016712,2]
[351214386,1738435835972,-500.0,0.00016712,2]
[351214387,1738435835981,-808.89,0.00016712,2]
[351214388,1738435835991,-524.14,0.00016712,2]
[351214389,1738435836001,-151.0,0.00016712,2]
[351214390,1738435836010,-452.449978,0.00016712,2]
[351214391,1738435836019,-627.48,0.00016712,2]
[351214392,1738435836030,-607.11,0.00016712,2]
[351214393,1738435836039,-151.0,0.00016712,2]
[351214394,1738435836048,-452.449978,0.00016712,2]
[351214395,1738435836058,-500.0,0.00016712,2]
[351214396,1738435836069,-606.15,0.00016712,2]
[351214397,1738435836079,-230.3968958,0.00016712,2]
[351214398,1738435836088,-151.0,0.00016712,2]
[351214399,1738435836098,-598.3,0.00016712,2]
[351214400,1738435836108,-582.23,0.00016712,2]
[351214401,1738435836118,-13341.64,0.00016712,2]
[351214402,1738435836127,-578.29,0.00016712,2]
[351214403,1738435836136,-961.27,0.00016712,2]
[351214404,1738435836146,-500.0,0.00016712,2]
[351214405,1738435836155,-500.0,0.00016712,2]
[351214406,1738435836164,-3791.43,0.00016712,2]
[351214407,1738435836174,-565.92,0.00016712,2]
[351214408,1738435836183,-3923.58,0.00016712,2]
[351214409,1738435836192,-500.0,0.00016848,2]
[351214410,1738435836202,-516.78,0.00016848,2]
[351214411,1738435836211,-16890.16353332,0.00016849,5]
[351214412,1738435836221,-25545.77856068,0.00016849,5]
[351214413,1738435836230,-500.0,0.00016849,2]
[351214414,1738435836239,-500.0,0.00016849,2]
[351214415,1738435836249,-500.0,0.00016849,2]
[351214416,1738435836258,-500.0,0.00016849,2]
[351214417,1738435836267,-500.0,0.00016849,2]
[351214418,1738435836277,-500.0,0.00016849,2]
[351214419,1738435836287,-500.0,0.00016849,2]
[351214420,1738435836296,-500.0,0.00016849,2]
[351214421,1738435836305,-500.0,0.00016849,2]
[351214422,1738435836315,-500.0,0.00016849,2]
[351214423,1738435836324,-500.0,0.00016849,2]
[351214424,1738435836333,-500.0,0.00016849,2]
[351214425,1738435836343,-522.65,0.00016849,2]
[351214426,1738435836352,-500.0,0.00016849,2]
[351214427,1738435836361,-500.0,0.00016849,2]
[351214428,1738435836371,-151.0,0.00016849,2]
[351214429,1738435836380,-500.0,0.00016849,2]
[351214430,1738435836389,-500.0,0.00016849,2]
[351214431,1738435836400,-580.07,0.00016849,2]
[351214432,1738435836409,-500.0,0.00016849,2]
[351214433,1738435836419,-202.303099,0.00016849,2]
[351214434,1738435836429,-202.303099,0.00016849,2]
[351214435,1738435836438,-151.0,0.00016849,2]
[351214436,1738435836447,-151.0,0.00016849,2]
[351214437,1738435836457,-898.35,0.00016849,2]
[351214438,1738435836466,-151.0,0.00016849,2]
[351214439,1738435836475,-500.0,0.00016849,2]
[351214440,1738435836485,-500.0,0.00016849,2]
[351214441,1738435836495,-500.0,0.00016849,2]
[351214442,1738435836505,-151.0,0.00016849,2]
[351214443,1738435836515,-500.0,0.00016849,2]
[351214444,1738435836524,-500.0,0.00016849,2]
[351214445,1738435836534,-1170.66,0.00016849,2]
[351214446,1738435836544,-500.0,0.00016849,2]
[351214447,1738435836553,-500.0,0.00016849,2]
[351214448,1738435836562,-500.0,0.00016849,2]
[351214449,1738435836571,-705.11,0.00016849,2]
[351214450,1738435836581,-500.0,0.00016849,2]
[351214451,1738435836590,-2258.15,0.00016849,2]
[351214452,1738435836599,-151.0,0.00016849,2]
[351214453,1738435836608,-226.507241,0.00016849,2]
[351214454,1738435836617,-151.0,0.00016849,2]
[351214455,1738435836626,-500.0,0.00016849,2]
[351214456,1738435836638,-4391.38,0.00016849,2]
[351214457,1738435836648,-151.0,0.00016849,2]
[351214458,1738435836658,-840.83,0.00016849,2]
[351214459,1738435836670,-1131.92,0.00016849,2]
[351214460,1738435836683,-691.22,0.00016849,2]
[351214461,1738435836692,-500.0,0.00016849,2]
[351214462,1738435836702,-586.83,0.00016849,2]
[351214463,1738435836711,-500.0,0.00016849,2]
[351214464,1738435836721,-808.89,0.00016849,2]
[351214465,1738435836730,-524.14,0.00016849,2]
[351214466,1738435836739,-151.0,0.00016849,2]
[351214467,1738435836749,-452.449978,0.00016849,2]
[351214468,1738435836760,-627.48,0.00016849,2]
[351214469,1738435836770,-607.11,0.00016849,2]
[351214470,1738435836780,-452.449978,0.00016849,2]
[351214471,1738435836789,-500.0,0.00016849,2]
[351214472,1738435836798,-606.15,0.00016849,2]
[351214473,1738435836808,-153.016265,0.00016849,2]
[351214474,1738435836817,-598.3,0.00016849,2]
[351214475,1738435836826,-582.23,0.00016849,2]
[351214476,1738435836835,-13341.64,0.00016849,2]
[351214477,1738435836845,-578.29,0.00016849,2]
[351214478,1738435836854,-961.27,0.00016849,2]
[351214479,1738435836862,-500.0,0.00016849,2]
[351214480,1738435836871,-500.0,0.00016849,2]
[351214481,1738435836881,-3791.43,0.00016849,2]
[351214482,1738435836890,-565.92,0.00016849,2]
[351214483,1738435836900,-3923.58,0.00016849,2]
[351214484,1738435836909,-253.71892882,0.000169,2]
[351214485,1738435836919,-511.273,0.00016985,2]
[351214486,1738435836929,-151.0,0.00016985,2]
[351214487,1738435836938,-151.0,0.00016985,2]
[351214488,1738435836947,-151.0,0.00016985,2]
[351214489,1738435836957,-151.0,0.00016985,2]
[351214490,1738435836967,-151.0,0.00016986,2]
[351214491,1738435836976,-500.0,0.00016986,2]
[351214492,1738435836985,-500.0,0.00016986,2]
[351214493,1738435836995,-500.0,0.00016986,2]
[351214494,1738435837004,-500.0,0.00016986,2]
[351214495,1738435837013,-500.0,0.00016986,2]
[351214496,1738435837024,-192.125145,0.00016986,2]
[351214497,1738435837037,-500.0,0.00016986,2]
[351214498,1738435837047,-500.0,0.00016986,2]
[351214499,1738435837056,-500.0,0.00016986,2]
[351214500,1738435837065,-444.85526809,0.00016986,2]
[351214501,1738435837075,-500.0,0.00016986,2]
[351214502,1738435837084,-500.0,0.00016986,2]
[351214503,1738435837093,-522.65,0.00016986,2]
[351214504,1738435837102,-500.0,0.00016986,2]
[351214505,1738435837112,-500.0,0.00016986,2]
[351214506,1738435837122,-151.0,0.00016986,2]
[351214507,1738435837131,-341.68018,0.00016986,2]
[351214508,1738435837141,-341.68018,0.00016986,2]
[351214509,1738435837150,-239.085177,0.00016986,2]
[351214510,1738435837159,-239.085177,0.00016986,2]
[351214511,1738435837169,-500.0,0.00016986,2]
[351214512,1738435837178,-500.0,0.00016986,2]
[351214513,1738435837187,-580.07,0.00016986,2]
[351214514,1738435837196,-500.0,0.00016986,2]
[351214515,1738435837205,-202.303099,0.00016986,2]
[351214516,1738435837215,-202.303099,0.00016986,2]
[351214517,1738435837224,-151.0,0.00016986,2]
[351214518,1738435837233,-898.35,0.00016986,2]
[351214519,1738435837242,-500.0,0.00016986,2]
[351214520,1738435837252,-500.0,0.00016986,2]
[351214521,1738435837261,-500.0,0.00016986,2]
[351214522,1738435837270,-500.0,0.00016986,2]